bitfinex-derivatives/quotes_ETHF0:USTF0_20260316
["timestamp","ask_amount","ask_price","bid_price","bid_amount"]
[1773653991312,6.53423292,2255.1,2254.3,5.52351247]
[1773653991513,6.53423292,2255.1,2254.1,9.73940063]
[1773653991714,6.53423292,2254.9,2254.0,4.21588816]
[1773653992218,6.53423292,2254.9,2254.0,5.19952825]
[1773653992418,6.53423292,2254.9,2254.1,9.938]
[1773653992617,6.53423292,2254.9,2254.1,14.132698]
[1773653994619,6.53423292,2254.9,2254.2,4.1896599]
[1773653995917,6.53423292,2254.9,2254.1,9.938]
[1773653996216,6.00073914,2254.6,2253.8,3.83602967]
[1773653996616,6.00073914,2254.6,2253.8,9.958]
[1773653997223,6.00073914,2254.6,2253.8,9.961]
[1773653998120,6.00073914,2254.6,2253.7,16.02645734]
[1773653998523,6.00073914,2254.6,2253.8,6.06145734]
[1773653999719,6.00073914,2254.6,2253.7,9.965]
[1773653999720,6.00073914,2254.6,2254.1,6.06145734]
[1773653999920,6.00073914,2254.6,2254.2,7.04509743]
[1773654000119,6.00073914,2254.6,2254.2,6.06145734]
[1773654000424,6.00073914,2255.3,2254.5,6.06145734]
[1773654000623,6.00073914,2255.3,2254.7,7.04509743]
[1773654000820,6.00073914,2255.3,2254.7,6.06145734]
[1773654001421,6.00073914,2255.3,2254.4,9.98]
[1773654002114,6.00073914,2255.3,2254.4,16.04145734]
[1773654003021,6.00073914,2255.3,2254.7,6.06145734]
[1773654006028,6.00073914,2255.9,2254.7,6.06145734]
[1773654006327,6.00073914,2255.9,2254.9,6.04054334]
[1773654007129,6.00073914,2255.9,2255.0,6.02243991]
[1773654013124,6.00073914,2255.9,2254.8,5.79617846]
[1773654014536,6.00073914,2255.9,2254.9,5.77168449]
[1773654019938,6.00073914,2256.5,2254.9,5.99340449]
[1773654020147,6.00073914,2256.5,2255.4,5.69067568]
[1773654021048,6.3319049,2256.5,2255.4,5.69067568]
[1773654024740,3.7132104,2256.9,2255.5,6.73970234]
[1773654024741,6.03753311,2256.6,2255.5,6.73970234]
[1773654025540,6.03753311,2256.6,2255.6,5.27254087]
[1773654025740,6.03753311,2256.6,2255.5,6.73970234]
[1773654025936,6.03753311,2256.6,2255.6,5.27254578]
[1773654026139,6.03753311,2256.6,2255.5,6.73970234]
[1773654026342,6.03753311,2256.6,2255.6,5.2741253]
[1773654026646,6.03753311,2256.6,2255.5,6.73970234]
[1773654026840,6.03753311,2256.6,2255.6,5.26541265]
[1773654027040,6.03753311,2256.6,2255.5,6.73970234]
[1773654027241,6.03753311,2256.6,2255.6,11.02499053]
[1773654027541,6.03753311,2256.6,2255.6,5.75714831]
[1773654027939,7.02008714,2256.6,2255.5,5.75714831]
[1773654028142,7.02008714,2256.4,2255.3,9.4443883]
[1773654028343,6.03753311,2256.4,2255.6,5.75714831]
[1773654031648,6.03753311,2256.4,2255.4,9.4443883]
[1773654032944,6.03753311,2256.4,2255.5,5.75714831]
[1773654034156,6.03753311,2256.4,2255.4,9.4443883]
[1773654035456,6.03753311,2256.2,2255.3,9.4443883]
[1773654035655,6.03753311,2255.9,2255.2,3.68723999]
[1773654035955,6.03753311,2255.9,2255.1,5.75714831]
[1773654037054,6.03753311,2255.8,2254.9,5.75714831]
[1773654042760,6.03753311,2256.3,2254.9,5.75714831]
[1773654042960,6.03753311,2256.1,2255.0,5.75714831]
[1773654043561,6.03753311,2256.1,2255.1,5.75714831]
[1773654046064,6.03753311,2256.1,2255.2,5.75714831]
[1773654047762,6.03753311,2256.1,2255.3,1.76859686]
[1773654047957,6.03753311,2256.4,2255.4,5.75714831]
[1773654048357,6.25679853,2256.4,2255.4,5.75714831]
[1773654053167,6.25679853,2256.4,2255.5,9.1279659]
[1773654054567,0.32808786,2256.7,2256.1,8.53800874]
[1773654054871,8.89216616,2256.6,2256.1,8.53800874]
[1773654056874,9.25003703,2256.9,2256.3,8.53800874]
[1773654057065,9.25003703,2256.9,2256.1,8.53800874]
[1773654057973,8.89216616,2256.6,2256.0,8.53800874]
[1773654060474,8.89216616,2256.6,2256.0,10.29161226]
[1773654062075,8.89216616,2256.8,2256.0,10.29161226]
[1773654064276,8.89216616,2257.0,2256.6,8.53800874]
[1773654064470,9.2534301,2257.0,2256.4,8.53800874]
[1773654064669,9.2534301,2257.0,2256.3,8.53800874]
[1773654065171,8.89216616,2257.0,2256.4,10.29161226]
[1773654065377,8.89216616,2257.3,2256.7,8.53800874]
[1773654065977,8.89216616,2257.0,2256.5,8.53800874]
[1773654066276,8.89216616,2256.8,2256.3,8.53800874]
[1773654071079,8.89216616,2256.8,2256.1,8.53800874]
[1773654075483,8.89216616,2256.6,2255.9,8.53800874]
[1773654078282,8.89216616,2256.3,2255.7,12.22524873]
[1773654078680,8.89216616,2256.3,2255.8,8.53800874]
[1773654078880,1.75360352,2256.4,2255.8,8.53800874]
[1773654079084,8.89216616,2256.5,2255.8,8.53800874]
[1773654080082,8.89216616,2256.5,2255.8,10.29161226]
[1773654080483,8.89216616,2256.7,2255.8,10.29161226]
[1773654082981,8.89216616,2256.7,2255.8,8.53800874]
[1773654083181,8.86227364,2256.5,2255.8,8.53800874]
[1773654083385,1.75360352,2256.2,2255.8,8.53800874]
[1773654083581,8.86227364,2256.1,2255.7,8.17857727]
[1773654083781,9.515,2256.4,2255.7,8.17857727]
[1773654083984,18.37727364,2256.4,2255.7,8.17857727]
[1773654084190,18.37727364,2256.4,2255.8,8.17857727]
[1773654085893,8.86227364,2256.3,2255.8,8.17857727]
[1773654086988,9.515,2256.4,2255.8,8.17857727]
[1773654087593,18.37727364,2256.4,2255.8,8.17857727]
[1773654088393,9.515,2256.4,2255.8,8.17857727]
[1773654088692,18.37727364,2256.4,2255.8,8.17857727]
[1773654089494,9.515,2256.4,2255.8,9.93218079]
[1773654089891,8.86227364,2256.5,2255.8,9.93218079]
[1773654091791,8.86227364,2256.5,2255.8,8.17857727]
[1773654091992,8.86227364,2256.5,2255.8,9.93218079]
[1773654092497,8.86227364,2256.7,2255.8,9.93218079]
[1773654094094,18.39827364,2256.8,2256.0,9.93218079]
[1773654094294,8.86227364,2256.8,2256.4,8.17857727]
[1773654097602,8.86227364,2256.8,2256.2,8.17857727]
[1773654097804,10.61587716,2256.8,2256.1,8.17857727]
[1773654098002,8.86227364,2256.8,2256.1,8.17857727]
[1773654100594,10.61587716,2256.8,2256.1,8.17857727]
[1773654100795,1.75360352,2256.4,2256.0,8.17857727]
[1773654101002,1.75360352,2256.4,2255.7,5.5274527]
[1773654101003,8.86227364,2256.3,2255.6,3.68372897]
[1773654101201,8.86227364,2256.3,2255.7,8.17857727]
[1773654102703,8.86227364,2256.3,2255.7,9.93218079]
[1773654103207,9.585,2256.4,2256.2,8.17857727]
[1773654103408,9.586,2256.6,2256.2,8.17857727]
[1773654103606,18.44827364,2256.6,2256.2,8.17857727]
[1773654104809,8.86227364,2256.5,2256.2,8.17857727]
[1773654106020,8.86227364,2256.5,2255.9,8.17857727]
[1773654109109,8.86227364,2256.5,2255.9,9.93218079]
[1773654109718,8.86227364,2256.5,2255.9,8.17857727]
[1773654110416,8.86227364,2256.5,2255.7,11.86230624]
[1773654110619,8.86227364,2256.5,2255.8,8.17857727]
[1773654111721,8.86227364,2256.3,2255.8,8.17857727]
[1773654112517,8.0572283,2256.2,2255.8,8.17857727]
[1773654112718,9.81083182,2256.2,2255.7,2.96303063]
[1773654112920,9.81083182,2256.2,2255.5,8.0157527]
[1773654113524,8.0572283,2256.2,2255.5,8.0157527]
[1773654114420,8.0572283,2256.2,2255.5,9.76935622]
[1773654114925,8.0572283,2256.2,2255.5,8.0157527]
[1773654116220,9.634,2256.3,2255.5,8.0157527]
[1773654116420,8.44265798,2256.2,2255.5,8.0157527]
[1773654121523,10.21150459,2256.2,2255.2,7.82056045]
[1773654122323,8.44265798,2256.2,2255.2,7.82056045]
[1773654134833,10.21150459,2256.2,2255.2,7.82056045]
[1773654147740,8.44265798,2256.2,2255.2,7.82056045]
[1773654147938,8.44265798,2256.2,2255.2,8.04225045]
[1773654148144,9.634,2256.3,2255.2,8.04225045]
[1773654148145,7.59610318,2256.6,2255.6,7.47285874]
[1773654148341,9.77,2256.8,2255.6,7.47285874]
[1773654148543,7.59610318,2256.7,2255.6,7.47285874]
[1773654163255,7.59610318,2256.5,2255.6,7.47285874]
[1773654163757,7.59923621,2256.7,2255.6,9.24170535]
[1773654165254,7.59923621,2256.7,2255.6,7.47285874]
[1773654172162,0.00313303,2256.7,2255.6,7.47285874]
[1773654172362,7.50572342,2256.7,2255.6,7.47285874]
[1773654172660,7.50572342,2256.7,2255.7,7.41402251]
[1773654172860,7.50572342,2256.7,2255.9,7.41402251]
[1773654177265,7.02584463,2256.4,2255.9,7.41402251]
[1773654179561,7.02584463,2256.4,2255.8,3.67570754]
[1773654179764,1.75326374,2256.1,2255.8,7.16648095]
[1773654180065,7.02584463,2256.1,2255.8,7.16648095]
[1773654180462,7.02584463,2256.2,2255.8,7.16648095]
[1773654187183,8.77910837,2256.1,2255.8,7.16648095]
[1773654187379,8.77910837,2255.9,2255.4,5.5274527]
[1773654187586,8.77910837,2255.7,2255.1,4.44541189]
[1773654189084,7.02584463,2255.7,2255.1,4.44541189]
[1773654190583,1.75326374,2255.3,2255.0,5.56798538]
[1773654190788,8.77910837,2255.3,2254.9,3.22105732]
[1773654191482,8.77910837,2255.3,2254.8,3.18052407]
[1773654192289,7.02584463,2255.3,2254.8,3.18052407]
[1773654193887,8.77910837,2255.3,2254.8,3.18052407]
[1773654194191,8.77910837,2255.3,2254.7,3.13449884]
[1773654194592,7.02584463,2255.4,2254.7,3.13449884]
[1773654198798,7.02584463,2255.2,2254.7,3.13449884]
[1773654200100,7.02584463,2255.2,2254.6,13.36451632]
[1773654201998,7.02584463,2255.0,2254.3,2.79712888]
[1773654202204,7.03085574,2255.0,2254.3,2.79712888]
[1773654204601,7.33413947,2254.8,2254.3,2.79712888]
[1773654208802,0.00501111,2255.0,2254.3,2.79712888]
[1773654209100,7.33915058,2255.0,2254.5,2.49540105]
[1773654209895,0.00501111,2255.0,2254.5,2.49540105]
[1773654210404,0.00501111,2255.0,2254.7,2.45440091]
[1773654210606,7.33413947,2255.1,2254.7,2.45440091]
[1773654211500,7.33844925,2255.1,2254.7,2.45440091]
[1773654211902,7.33413947,2255.3,2254.7,2.45440091]
[1773654213104,7.33765477,2255.3,2254.7,2.4579967]
[1773654215207,7.33765477,2255.3,2254.7,0.00359579]
[1773654215404,7.33765477,2255.3,2254.7,2.38794733]
[1773654216007,7.33765477,2255.3,2254.8,1.75326374]
[1773654216204,7.33765477,2255.3,2254.9,2.33953438]
[1773654217616,0.0035153,2255.3,2254.9,2.33953438]
[1773654217909,7.33765477,2255.3,2254.9,2.33953438]
[1773654219218,7.33765477,2255.3,2254.7,2.22994154]
[1773654221017,0.0035153,2255.3,2255.0,3.9087396]
[1773654221219,7.33413947,2255.5,2255.0,3.9087396]
[1773654222022,7.33413947,2255.5,2255.0,3.89311671]
[1773654222220,7.33786205,2255.5,2254.8,1.75326374]
[1773654222422,7.33786205,2255.5,2254.9,2.11324837]
[1773654228626,7.33786205,2255.5,2254.8,1.75326374]
[1773654228922,7.33786205,2255.5,2254.7,1.89496622]
[1773654231427,7.33786205,2255.5,2254.7,0.00359579]
[1773654231628,7.33786205,2255.5,2254.7,1.86526901]
[1773654234630,7.33786205,2255.5,2255.0,3.38910077]
[1773654234833,7.33786205,2255.5,2255.2,8.65878188]
[1773654234834,6.68481386,2255.5,2255.2,8.65878188]
[1773654235130,7.39780275,2256.0,2255.5,6.90551814]
[1773654235527,7.39780275,2256.0,2255.6,8.65878188]
[1773654235724,7.39780275,2256.0,2255.7,6.90551814]
[1773654235928,7.39780275,2256.0,2255.1,17.70289957]
[1773654235929,7.39780275,2256.2,2255.8,8.65878188]
[1773654236129,7.39780275,2256.2,2255.9,6.90551814]
[1773654236443,7.39780275,2256.2,2255.7,6.90551814]
[1773654237027,7.40307634,2256.2,2255.7,6.90551814]
[1773654237935,7.40307634,2256.2,2255.4,6.90551814]
[1773654240039,7.40307634,2256.2,2255.1,7.12721814]
[1773654240439,7.40307634,2256.2,2255.1,6.90551814]
[1773654240639,7.39780275,2255.9,2254.9,6.90551814]
[1773654248043,7.6240756,2255.9,2254.9,6.90551814]
[1773654250044,7.39780275,2255.9,2254.9,6.90551814]
[1773654251137,7.39780275,2255.9,2255.1,6.90551814]
[1773654251538,7.39780275,2256.1,2255.3,6.90551814]
[1773654251743,7.39780275,2256.1,2255.5,6.90551814]
[1773654251937,7.39780275,2256.1,2255.1,3.67393544]
[1773654252143,7.39780275,2256.1,2255.1,10.57945358]
[1773654252343,7.39780275,2256.1,2255.2,6.90551814]
[1773654254545,7.39780275,2255.9,2255.1,6.90551814]
[1773654265348,7.39780275,2255.9,2255.1,10.57945358]
[1773654265554,7.39780275,2255.9,2255.2,7.47288849]
[1773654266247,7.39780275,2255.9,2255.1,7.47288849]
[1773654266452,7.61725133,2255.8,2255.1,7.47288849]
[1773654269148,7.61725133,2255.8,2255.2,7.47288849]
[1773654271853,7.61725133,2255.8,2255.1,11.14682393]
[1773654272053,7.61725133,2255.8,2255.2,7.47288849]
[1773654273856,7.61725133,2255.8,2255.0,11.14682393]
[1773654274050,7.61725133,2255.8,2255.1,7.47288849]
[1773654275156,7.61725133,2255.8,2254.9,11.14682393]
[1773654275357,7.61725133,2255.8,2255.0,7.47288849]
[1773654275856,7.61725133,2255.8,2254.8,7.47288849]
[1773654275857,7.61725133,2255.7,2254.8,7.47288849]
[1773654276653,7.61725133,2255.6,2254.7,7.47648428]
[1773654276855,7.61725133,2255.4,2254.7,7.47648428]
[1773654286557,7.61725133,2255.4,2254.7,0.00359579]
[1773654286757,7.61725133,2255.4,2254.4,5.5274527]
[1773654286758,7.61725133,2254.8,2254.4,7.47288849]
[1773654286960,7.61725133,2254.8,2254.4,3.99957589]
[1773654287266,7.61725133,2254.8,2254.2,7.47288849]
[1773654287667,7.61725133,2254.8,2254.2,7.47759121]
[1773654288169,7.61725133,2254.8,2254.2,0.00470272]
[1773654288369,7.61725133,2254.8,2254.2,7.47759121]
[1773654291175,7.61725133,2254.8,2254.0,7.47288849]
[1773654291868,7.61725133,2254.5,2254.0,7.47288849]
[1773654292072,7.61725133,2254.2,2253.7,0.44198815]
[1773654292267,7.62286644,2254.2,2253.7,0.44700244]
[1773654300475,7.59155478,2254.8,2253.7,0.44700244]
[1773654300675,9.34682848,2254.8,2254.2,1.2797875]
[1773654301077,7.59155478,2254.8,2254.2,1.2797875]
[1773654301379,9.34682848,2254.8,2254.2,1.2797875]
[1773654301576,9.351406,2254.8,2254.2,1.2797875]
[1773654301780,7.59155478,2254.5,2254.1,1.25163432]
[1773654302678,7.59155478,2254.5,2253.9,10.789]
[1773654302679,7.59155478,2254.5,2253.9,1.22000831]
[1773654303580,7.59155478,2254.7,2254.0,1.13567589]
[1773654304776,7.59155478,2254.7,2253.8,5.04156019]
[1773654304979,7.59155478,2254.7,2253.9,10.795]
[1773654305278,7.59155478,2254.7,2253.9,1.14658738]
[1773654306078,7.59155478,2254.5,2253.8,4.79273519]
[1773654306282,7.59155478,2254.2,2253.8,4.79273519]
[1773654306581,9.34682848,2254.1,2253.7,4.76969273]
[1773654306776,7.59155478,2254.1,2253.7,0.00501429]
[1773654307179,7.59155478,2254.3,2253.7,1.096913]
[1773654307581,7.59155478,2254.7,2253.7,1.096913]
[1773654307777,7.59155478,2254.7,2253.8,1.06395235]
[1773654309785,7.59155478,2254.7,2253.9,1.02122863]
[1773654309983,7.59155478,2254.7,2254.0,1.02122863]
[1773654310486,7.5961323,2254.8,2254.2,0.99405821]
[1773654313890,7.5961323,2254.8,2254.0,4.55621649]
[1773654314091,7.5961323,2254.8,2254.0,4.56205969]
[1773654316798,7.5961323,2254.8,2254.0,3.67977864]
[1773654316999,7.5961323,2254.8,2253.9,3.67977864]
[1773654317699,7.5961323,2254.8,2253.8,4.37772833]
[1773654317895,7.5961323,2254.8,2253.9,0.69794969]
[1773654318098,7.5961323,2254.8,2253.9,4.37772833]
[1773654318393,7.5961323,2254.8,2254.0,0.70472915]
[1773654319597,7.5961323,2254.8,2253.9,3.67977864]
[1773654319997,7.5961323,2254.8,2253.8,3.67977864]
[1773654320501,7.5961323,2254.8,2253.9,3.67977864]
[1773654320702,7.5961323,2254.8,2253.8,3.67977864]
[1773654322699,7.5961323,2254.8,2253.8,4.23610642]
[1773654323006,7.5961323,2254.8,2254.0,0.55878643]
[1773654325306,7.5961323,2254.8,2253.9,4.12181255]
[1773654325804,7.5961323,2254.8,2253.9,3.67977864]
[1773654326709,7.5961323,2254.8,2253.9,4.09636245]
[1773654327103,1.75598756,2254.7,2253.9,4.09636245]
[1773654327302,1.75598756,2254.3,2253.9,0.62431784]
[1773654327610,0.00457752,2254.8,2253.5,5.5274527]
[1773654327611,7.49120925,2254.0,2253.5,5.5274527]
[1773654327907,7.49120925,2253.8,2253.3,3.44675828]
[1773654328705,7.49120925,2253.8,2253.3,3.45049568]
[1773654329499,7.49120925,2253.8,2253.3,0.0037374]
[1773654330104,7.49120925,2253.8,2253.3,3.65316804]
[1773654331105,7.49120925,2254.0,2253.5,3.66209756]
[1773654331605,6.87020503,2254.0,2253.5,3.66209756]
[1773654331804,7.49120925,2254.2,2253.5,3.66209756]
[1773654332308,7.49120925,2254.2,2253.7,4.2859279]
[1773654334008,7.49120925,2254.6,2253.7,4.5077679]
[1773654334213,7.49120925,2254.6,2253.8,4.1498165]
[1773654334611,9.24719681,2254.6,2253.8,15.0128165]
[1773654336514,9.24719681,2254.6,2253.9,4.00826083]
[1773654336714,7.49120925,2254.6,2253.9,4.00826083]
[1773654339212,7.49120925,2254.3,2253.7,4.28843696]
[1773654339413,7.49120925,2254.3,2253.7,11.10284]
[1773654339919,7.49120925,2254.3,2253.7,11.10584]
[1773654340114,7.49120925,2254.3,2253.7,10.884]
[1773654341815,7.49120925,2254.3,2253.7,14.89755472]
[1773654343220,7.49120925,2254.3,2253.7,10.884]
[1773654343926,7.49120925,2254.3,2253.7,14.83943465]
[1773654347428,7.49120925,2254.3,2253.6,5.5274527]
[1773654347629,7.49120925,2254.3,2253.6,9.48220044]
[1773654348324,7.49120925,2254.3,2253.7,10.931]
[1773654349927,7.49120925,2254.3,2253.5,10.943]
[1773654350630,7.49120925,2254.3,2253.5,14.85279594]
[1773654351728,7.49120925,2254.3,2253.6,3.87560336]
[1773654353525,7.49120925,2254.3,2253.5,10.943]
[1773654353825,7.49120925,2254.3,2253.5,3.83762766]
[1773654354229,7.49120925,2254.3,2253.3,9.37009424]
[1773654354534,7.49120925,2254.3,2253.3,14.81564154]
[1773654355228,7.49120925,2254.3,2253.4,3.74452646]
[1773654356232,7.49120925,2254.3,2253.6,3.74323904]
[1773654357633,7.49120925,2254.3,2253.6,14.73823904]
[1773654359133,7.49120925,2254.3,2253.4,5.5274527]
[1773654359328,7.49120925,2254.3,2253.4,3.71260936]
[1773654361632,7.49120925,2254.3,2253.6,3.6912639]
[1773654364529,7.49120925,2254.3,2253.6,14.7222639]
[1773654365638,7.49120925,2254.3,2253.3,3.63328693]
[1773654369945,6.82303441,2254.5,2253.6,3.57680118]
[1773654370136,6.82303441,2254.5,2253.7,3.57716367]
[1773654370341,6.82303441,2254.5,2253.5,3.55416635]
[1773654370841,6.82303441,2254.2,2253.3,3.55790375]
[1773654373942,6.82303441,2254.2,2253.5,3.4334369]
[1773654374243,6.82303441,2254.7,2253.5,3.4334369]
[1773654374540,6.82303441,2254.7,2253.6,3.41077993]
[1773654374741,6.82303441,2254.7,2253.8,3.41077993]
[1773654374941,6.82303441,2254.7,2254.1,3.41313256]
[1773654375141,6.81845689,2254.8,2254.1,3.41313256]
[1773654375447,6.81845689,2254.8,2253.8,16.5994527]
[1773654375448,6.82303441,2255.3,2254.3,3.39513723]
[1773654375644,6.82303441,2255.3,2254.5,3.39513723]
[1773654376242,6.82816561,2255.3,2254.5,3.39513723]
[1773654378949,6.82303441,2255.5,2254.5,3.39513723]
[1773654379149,6.82303441,2255.5,2254.7,3.27014796]
[1773654380046,6.82646803,2255.5,2254.7,3.27014796]
[1773654386960,0.00343362,2255.5,2254.9,2.93116415]
[1773654387152,6.74913687,2256.5,2255.1,2.93198934]
[1773654387460,6.74913687,2256.2,2255.1,2.93198934]
[1773654388054,6.75258791,2256.2,2255.1,2.93198934]
[1773654389062,6.75258791,2256.2,2255.0,3.19023371]
[1773654402873,6.75258791,2256.2,2255.0,2.96852371]
[1773654403075,6.75258791,2256.2,2255.5,2.62511509]
[1773654404873,6.75258791,2256.2,2255.7,2.51714169]
[1773654405477,6.05230777,2256.2,2255.7,2.51714169]
[1773654406575,0.00345104,2256.2,2255.7,2.51714169]
[1773654407281,6.74913687,2257.1,2256.1,3.38251038]
[1773654407678,6.74913687,2257.1,2256.3,3.41140291]
[1773654408277,6.75386794,2257.1,2256.3,3.41140291]
[1773654409382,6.75386794,2257.1,2256.0,3.38035158]
[1773654419387,6.75386794,2257.1,2255.9,3.28509416]
[1773654420492,6.27787417,2256.9,2255.8,0.22163]
[1773654421190,0.00473107,2257.1,2255.5,16.6804527]
[1773654421191,6.27787417,2256.5,2255.5,14.53428639]
[1773654421492,6.27787417,2256.5,2255.5,3.38128639]
[1773654421687,6.27787417,2256.5,2255.3,14.73668578]
[1773654421899,6.27787417,2256.5,2255.4,3.36200578]
[1773654422288,8.85798,2257.8,2256.0,3.55626853]
[1773654422489,6.27787417,2257.7,2256.5,6.32452818]
[1773654422690,6.27787417,2257.7,2256.9,3.65974915]
[1773654422890,4.98191534,2257.7,2257.0,6.79523122]
[1773654423093,4.98191534,2257.7,2257.2,6.10296818]
[1773654423288,4.98191534,2257.7,2257.3,6.79523122]
[1773654423490,4.98636356,2257.7,2257.4,0.69226304]
[1773654423689,4.98636356,2257.7,2256.7,3.65974915]
[1773654423906,4.98636356,2257.7,2256.7,9.76271733]
[1773654424090,4.98636356,2257.7,2256.7,6.10296818]
[1773654424493,4.98636356,2257.7,2256.8,6.10296818]
[1773654424797,4.98636356,2257.7,2256.8,6.1070181]
[1773654425193,0.32271695,2258.5,2257.0,8.86062]
[1773654425398,4.436,2259.2,2257.3,6.10296818]
[1773654425399,6.27787417,2258.4,2257.3,6.10296818]
[1773654426296,6.2813995,2258.4,2257.1,6.10296818]
[1773654430500,6.2813995,2258.4,2257.3,6.10296818]
[1773654431701,0.2213,2259.2,2257.5,6.32443818]
[1773654431702,6.27787417,2259.2,2257.5,6.32443818]
[1773654431903,6.27787417,2259.1,2257.6,6.10296818]
[1773654432096,6.27787417,2259.1,2257.8,6.10296818]
[1773654432697,6.2821643,2259.1,2257.8,6.10296818]
[1773654433298,6.27787417,2258.9,2257.5,3.65974915]
[1773654433502,6.27787417,2258.4,2257.5,6.10296818]
[1773654435314,6.27787417,2258.4,2257.0,6.10296818]
[1773654435612,6.27787417,2258.4,2257.1,0.60942283]
[1773654435804,6.27787417,2258.4,2257.2,0.60942283]
[1773654436010,6.27787417,2258.4,2257.3,0.60942283]
[1773654436208,6.27787417,2258.4,2257.4,0.60942283]
[1773654436508,44.54498213,2258.5,2256.8,6.3285481]
[1773654436509,6.27787417,2258.0,2256.8,6.3285481]
[1773654436710,6.27787417,2257.8,2256.8,6.1070181]
[1773654439214,6.27787417,2258.4,2256.9,6.10296818]
[1773654439415,6.27787417,2258.4,2257.0,6.10296818]
[1773654441920,6.27787417,2258.4,2257.2,6.10296818]
[1773654444016,6.97972318,2258.2,2257.2,6.10296818]
[1773654446425,6.97972318,2258.2,2257.6,7.28564969]
[1773654447720,6.97972318,2258.2,2257.5,0.22147]
[1773654448120,0.62862573,2259.7,2257.6,7.28564969]
[1773654448318,6.97972318,2259.6,2258.2,7.50704969]
[1773654448519,6.98401331,2259.6,2258.5,7.28564969]
[1773654448723,6.98401331,2259.6,2258.7,7.28564969]
[1773654448928,6.98401331,2259.6,2258.8,7.88093638]
[1773654449121,6.98401331,2259.6,2258.9,0.59528669]
[1773654449325,6.98835112,2259.6,2259.0,0.59528669]
[1773654449627,6.98835112,2259.6,2259.1,0.59528669]
[1773654449824,6.98835112,2259.6,2259.2,0.59528669]
[1773654450028,6.98835112,2259.6,2258.9,0.00434319]
[1773654451035,6.98835112,2259.6,2258.9,7.28999288]
[1773654451329,6.98835112,2259.6,2258.9,0.00434319]
[1773654453226,6.97972318,2260.2,2258.9,7.51131288]
[1773654453429,6.97972318,2260.7,2259.1,7.28564969]
[1773654454028,7.51830237,2260.7,2259.1,7.28564969]
[1773654454228,7.52289004,2260.7,2259.1,7.28564969]
[1773654454430,6.97972318,2260.5,2259.1,7.28564969]
[1773654455034,6.97972318,2260.3,2259.1,7.28564969]
[1773654456328,6.97972318,2260.2,2259.1,7.28564969]
[1773654456534,6.97972318,2260.0,2259.1,7.28564969]
[1773654456735,6.97972318,2259.9,2259.1,7.28564969]
[1773654457127,6.97972318,2260.1,2259.1,7.28564969]
[1773654458635,6.98431085,2260.7,2259.2,4.9028372]
[1773654458936,6.98431085,2260.7,2259.3,7.28564969]
[1773654459332,6.98431085,2260.7,2259.4,4.78048499]
[1773654459532,6.98431085,2260.7,2259.5,7.28564969]
[1773654460236,6.97972318,2260.5,2259.5,7.28564969]
[1773654461439,6.97972318,2260.4,2259.5,7.28564969]
[1773654461938,6.97972318,2260.4,2259.6,0.58067911]
[1773654462134,6.97972318,2260.4,2259.7,0.58067911]
[1773654462334,6.97972318,2260.4,2259.8,0.58067911]
[1773654462535,6.97972318,2260.4,2259.9,0.58067911]
[1773654462734,6.97972318,2260.4,2260.0,0.58067911]
[1773654462939,6.97972318,2260.4,2259.5,7.28564969]
[1773654463237,6.97972318,2260.2,2259.6,7.86610716]
[1773654463441,6.97972318,2260.2,2259.7,0.58045747]
[1773654463639,6.97972318,2260.2,2259.8,0.58045747]
[1773654463840,6.97972318,2260.2,2259.9,0.58045747]
[1773654464040,6.97972318,2260.2,2260.0,0.58045747]
[1773654464236,6.97972318,2260.2,2259.7,7.28564969]
[1773654464534,6.97972318,2260.2,2259.0,7.28564969]
[1773654464937,6.97972318,2260.2,2259.1,7.28564969]
[1773654467644,17.36972318,2260.2,2259.1,7.28564969]
[1773654467836,6.97972318,2260.1,2259.1,7.28564969]
[1773654469844,6.97972318,2260.4,2259.4,7.28564969]
[1773654470044,6.97972318,2260.3,2259.4,7.28564969]
[1773654470343,6.97972318,2260.3,2259.1,7.28564969]
[1773654471045,6.97972318,2260.1,2259.1,7.28564969]
[1773654472046,10.412,2260.0,2259.1,7.28564969]
[1773654472249,6.59864652,2259.9,2259.1,7.28564969]
[1773654472550,6.59864652,2259.9,2258.9,6.54356809]
[1773654474748,6.72696428,2259.7,2258.9,6.54356809]
[1773654476252,6.72696428,2259.7,2259.0,0.57887953]
[1773654476452,6.72696428,2259.7,2259.1,0.57887953]
[1773654476651,6.72696428,2259.7,2258.9,0.00434319]
[1773654477048,6.72696428,2259.4,2258.6,6.58245416]
[1773654477548,6.72696428,2259.2,2258.6,6.58245416]
[1773654477753,6.29518631,2259.2,2258.4,6.58245416]
[1773654478052,6.29518631,2259.2,2258.4,6.58635478]
[1773654479548,6.29518631,2259.2,2258.5,6.58245416]
[1773654479747,6.72696428,2259.5,2258.6,6.58245416]
[1773654479947,6.72696428,2259.4,2258.6,6.58245416]
[1773654480149,6.72696428,2259.4,2258.7,6.58245416]
[1773654482552,6.72696428,2259.3,2258.7,6.58245416]
[1773654483255,6.72696428,2259.3,2258.4,0.00390062]
[1773654485753,6.72696428,2259.3,2258.0,6.58245416]
[1773654486751,6.72696428,2258.9,2258.0,0.00417788]
[1773654486958,6.72696428,2258.7,2258.0,0.00417788]
[1773654487747,6.72696428,2258.5,2258.0,6.58663204]
[1773654489258,17.22096428,2258.4,2258.0,6.58663204]
[1773654489458,6.72696428,2258.3,2258.0,0.00417788]
[1773654490561,6.72696428,2258.3,2258.0,6.58663204]
[1773654490856,6.72696428,2258.5,2258.0,6.58663204]
[1773654491960,6.72696428,2258.8,2258.0,6.58663204]
[1773654492158,6.73126561,2258.9,2258.0,6.58663204]
[1773654492360,6.72696428,2259.1,2258.2,6.58245416]
[1773654492562,17.23996428,2259.1,2258.2,6.58245416]
[1773654492859,6.72696428,2259.1,2258.2,6.58245416]
[1773654493461,0.00495039,2259.1,2258.2,6.58245416]
[1773654494057,6.73191467,2259.1,2258.2,6.58245416]
[1773654498761,6.73191467,2259.1,2258.3,6.58245416]
[1773654499163,5.73789695,2259.1,2258.3,6.58245416]
[1773654499364,5.73789695,2259.1,2258.4,6.58245416]
[1773654499960,6.72696428,2259.9,2258.4,6.58245416]
[1773654500166,6.72696428,2259.7,2258.4,6.58245416]
[1773654500368,6.72696428,2259.5,2258.4,6.58245416]
[1773654501469,6.72696428,2259.4,2258.5,6.58245416]
[1773654502365,6.72696428,2259.4,2258.6,6.77379721]
[1773654504270,6.72696428,2259.4,2258.2,3.64868303]
[1773654504476,6.72696428,2259.4,2258.2,10.42248024]
[1773654504776,6.50190733,2259.3,2258.3,6.77379721]
[1773654506078,6.50190733,2259.1,2258.3,6.77379721]
[1773654510178,6.50190733,2258.9,2258.3,6.77379721]
[1773654510577,10.575,2259.0,2258.3,6.77379721]
[1773654510775,6.50190733,2258.9,2258.3,6.77379721]
[1773654514176,10.59,2259.1,2258.3,6.77379721]
[1773654514376,17.09190733,2259.1,2258.3,6.77379721]
[1773654514577,6.50190733,2259.5,2258.6,6.77379721]
[1773654514780,6.50190733,2259.5,2258.7,3.64868303]
[1773654515082,6.50190733,2259.5,2258.4,5.7488327]
[1773654515083,6.50190733,2259.5,2258.8,6.77379721]
[1773654516374,6.50190733,2259.5,2258.7,6.77379721]